[Event "Titled Tuesday Blitz December 27 Early 2022"]
[White "Bas Mas, Jose Joaquin"]
[Black "Derjabin, Ilja"]
[WhiteFideId "22219064"]
[BlackFideId "14104768"]
[WhiteElo "2197"]
[BlackElo "2333"]
[Result "0-1"]
[Round "04"]
[TimeControl "180+2"]
[Date "2022.12.27"]
[WhiteClock "0:00:01"]
[BlackClock "0:00:27"]

1. e4 {[%clk 0:02:59]}  c5 {[%clk 0:02:56]} 2. Nc3 {[%clk 0:02:57]}  e6 {[%clk 0:02:54]} 3. d3 {[%clk 0:02:48]}  d5 {[%clk 0:02:49]} 4. exd5 {[%clk 0:02:46]}  exd5 {[%clk 0:02:49]} 5. d4 {[%clk 0:02:43]}  c4 {[%clk 0:02:48]} 6. g3 {[%clk 0:02:39]}  Bb4 {[%clk 0:02:45]} 7. Bg2 {[%clk 0:02:37]}  Ne7 {[%clk 0:02:45]} 8. Ne2 {[%clk 0:02:36]}  Nbc6 {[%clk 0:02:34]} 9. O-O {[%clk 0:02:34]}  O-O {[%clk 0:01:57]} 10. a3 {[%clk 0:02:33]}  Ba5 {[%clk 0:01:33]} 11. b4 {[%clk 0:02:31]}  cxb3 {[%clk 0:01:32]} 12. cxb3 {[%clk 0:02:32]}  Bg4 {[%clk 0:01:32]} 13. b4 {[%clk 0:02:30]}  Bb6 {[%clk 0:01:31]} 14. h3 {[%clk 0:02:24]}  Bh5 {[%clk 0:01:30]} 15. g4 {[%clk 0:02:22]}  Bg6 {[%clk 0:01:29]} 16. Bg5 {[%clk 0:02:12]}  f6 {[%clk 0:01:24]} 17. Bh4 {[%clk 0:02:11]}  Qd7 {[%clk 0:01:05]} 18. Qb3 {[%clk 0:01:46]}  Rad8 {[%clk 0:01:03]} 19. Rad1 {[%clk 0:01:39]}  h5 {[%clk 0:01:00]} 20. Nf4 {[%clk 0:01:26]}  hxg4 {[%clk 0:01:00]} 21. Ncxd5 {[%clk 0:01:07]}  Bf7 {[%clk 0:00:58]} 22. Nxb6 {[%clk 0:00:53]}  axb6 {[%clk 0:00:56]} 23. d5 {[%clk 0:00:48]}  Ne5 {[%clk 0:00:44]} 24. Ne6 {[%clk 0:00:23]}  Nf3+ {[%clk 0:00:29]} 25. Bxf3 {[%clk 0:00:18]}  gxf3 {[%clk 0:00:30]} 26. Qxf3 {[%clk 0:00:08]}  Bxe6 {[%clk 0:00:29]} 27. dxe6 {[%clk 0:00:08]}  Qxe6 {[%clk 0:00:30]} 28. Rde1 {[%clk 0:00:07]}  Qf7 {[%clk 0:00:29]} 29. Qxb7 {[%clk 0:00:07]}  Nf5 {[%clk 0:00:28]} 30. Qxf7+ {[%clk 0:00:05]}  Rxf7 {[%clk 0:00:29]} 31. Bg3 {[%clk 0:00:05]}  Ra8 {[%clk 0:00:28]} 32. Bf4 {[%clk 0:00:05]}  Rxa3 {[%clk 0:00:28]} 33. Kg2 {[%clk 0:00:04]}  Nh4+ {[%clk 0:00:27]} 34. Kh1 {[%clk 0:00:01]}  Rxh3+ {[%clk 0:00:27]} 0-1


[Site "https://www.chess.com"]

[Event "Titled Tuesday Blitz December 27 Early 2022"]
[White "Bashirli, Saadat"]
[Black "Borrmann, Laurenz"]
[WhiteFideId "13429990"]
[BlackFideId "312187930"]
[WhiteElo "1571"]
[BlackElo "2304"]
[Result "0-1"]
[Round "04"]
[TimeControl "180+2"]
[Date "2022.12.27"]
[WhiteClock "0:00:57"]
[BlackClock "0:01:25"]

1. d4 {[%clk 0:03:00]}  Nf6 {[%clk 0:02:58]} 2. c4 {[%clk 0:03:01]}  g6 {[%clk 0:02:57]} 3. Nc3 {[%clk 0:03:01]}  Bg7 {[%clk 0:02:58]} 4. e4 {[%clk 0:03:01]}  d6 {[%clk 0:02:57]} 5. Bg5 {[%clk 0:03:01]}  O-O {[%clk 0:02:57]} 6. Be2 {[%clk 0:03:02]}  c5 {[%clk 0:02:49]} 7. d5 {[%clk 0:03:01]}  e6 {[%clk 0:02:47]} 8. Nf3 {[%clk 0:02:54]}  exd5 {[%clk 0:02:46]} 9. Nxd5 {[%clk 0:02:52]}  Be6 {[%clk 0:02:32]} 10. Nxf6+ {[%clk 0:02:46]}  Bxf6 {[%clk 0:02:32]} 11. Bxf6 {[%clk 0:02:43]}  Qxf6 {[%clk 0:02:32]} 12. Qxd6 {[%clk 0:02:42]}  Qxb2 {[%clk 0:02:32]} 13. Qe5 {[%clk 0:02:29]}  Qb4+ {[%clk 0:02:29]} 14. Kf1 {[%clk 0:02:18]}  Nc6 {[%clk 0:02:28]} 15. Qf6 {[%clk 0:01:58]}  Bxc4 {[%clk 0:02:27]} 16. Ng5 {[%clk 0:01:52]}  Bxe2+ {[%clk 0:02:14]} 17. Kxe2 {[%clk 0:01:53]}  h6 {[%clk 0:02:03]} 18. h4 {[%clk 0:01:51]}  Nd4+ {[%clk 0:02:01]} 19. Kf1 {[%clk 0:01:47]}  Qc4+ {[%clk 0:01:39]} 20. Kg1 {[%clk 0:01:44]}  Ne2+ {[%clk 0:01:38]} 21. Kh2 {[%clk 0:01:36]}  hxg5 {[%clk 0:01:38]} 22. hxg5 {[%clk 0:01:36]}  Qxe4 {[%clk 0:01:38]} 23. g3 {[%clk 0:01:29]}  Qf5 {[%clk 0:01:37]} 24. Qxf5 {[%clk 0:01:20]}  gxf5 {[%clk 0:01:37]} 25. Kg2 {[%clk 0:01:21]}  Kg7 {[%clk 0:01:35]} 26. Rhe1 {[%clk 0:01:18]}  Rfe8 {[%clk 0:01:34]} 27. Rab1 {[%clk 0:01:17]}  b6 {[%clk 0:01:34]} 28. Kf3 {[%clk 0:01:15]}  Nd4+ {[%clk 0:01:33]} 29. Kf4 {[%clk 0:01:15]}  Rxe1 {[%clk 0:01:29]} 30. Rxe1 {[%clk 0:01:16]}  Kf8 {[%clk 0:01:30]} 31. g4 {[%clk 0:01:12]}  fxg4 {[%clk 0:01:29]} 32. Kxg4 {[%clk 0:01:13]}  Re8 {[%clk 0:01:29]} 33. Rh1 {[%clk 0:01:12]}  Re4+ {[%clk 0:01:29]} 34. f4 {[%clk 0:01:10]}  Ne6 {[%clk 0:01:29]} 35. Rf1 {[%clk 0:01:06]}  Kg7 {[%clk 0:01:28]} 36. Kg3 {[%clk 0:01:02]}  c4 {[%clk 0:01:26]} 37. f5 {[%clk 0:01:00]}  Nxg5 {[%clk 0:01:26]} 38. f6+ {[%clk 0:01:00]}  Kg6 {[%clk 0:01:26]} 39. Rc1 {[%clk 0:01:00]}  b5 {[%clk 0:01:27]} 40. Kf2 {[%clk 0:00:58]}  a6 {[%clk 0:01:25]} 41. Kg2 {[%clk 0:00:57]}  Kxf6 {[%clk 0:01:25]} 0-1


[Site "https://www.chess.com"]

[Event "Titled Tuesday Blitz December 27 Early 2022"]
[White "Belozerov, Andrei"]
[Black "Quinones Garcia, Santiago"]
[WhiteFideId "4120213"]
[BlackFideId "4408497"]
[WhiteElo "2461"]
[BlackElo "2248"]
[Result "1-0"]
[Round "04"]
[TimeControl "180+2"]
[Date "2022.12.27"]
[WhiteClock "0:00:20"]
[BlackClock "0:00:01"]

1. d4 {[%clk 0:03:00]}  Nf6 {[%clk 0:02:58]} 2. c4 {[%clk 0:02:59]}  g6 {[%clk 0:02:59]} 3. g3 {[%clk 0:02:57]}  d5 {[%clk 0:02:57]} 4. Bg2 {[%clk 0:02:55]}  c6 {[%clk 0:02:57]} 5. Nf3 {[%clk 0:02:55]}  Bg7 {[%clk 0:02:49]} 6. O-O {[%clk 0:02:54]}  O-O {[%clk 0:02:49]} 7. a4 {[%clk 0:02:54]}  Nbd7 {[%clk 0:02:48]} 8. cxd5 {[%clk 0:02:46]}  cxd5 {[%clk 0:02:48]} 9. Nc3 {[%clk 0:02:46]}  e6 {[%clk 0:02:48]} 10. b3 {[%clk 0:02:44]}  b6 {[%clk 0:02:48]} 11. Ba3 {[%clk 0:02:43]}  Re8 {[%clk 0:02:47]} 12. Nb5 {[%clk 0:02:43]}  Ne4 {[%clk 0:02:46]} 13. Nd2 {[%clk 0:02:41]}  Ndf6 {[%clk 0:02:36]} 14. Nxe4 {[%clk 0:02:40]}  dxe4 {[%clk 0:02:32]} 15. Nd6 {[%clk 0:02:38]}  Re7 {[%clk 0:02:32]} 16. Nxc8 {[%clk 0:02:36]}  Rxc8 {[%clk 0:02:30]} 17. Bxe7 {[%clk 0:02:35]}  Qxe7 {[%clk 0:02:31]} 18. e3 {[%clk 0:02:31]}  Qd7 {[%clk 0:02:12]} 19. Rc1 {[%clk 0:02:29]}  Bf8 {[%clk 0:02:05]} 20. Rxc8 {[%clk 0:02:26]}  Qxc8 {[%clk 0:02:06]} 21. Qb1 {[%clk 0:02:24]}  Qb7 {[%clk 0:02:05]} 22. Rc1 {[%clk 0:02:22]}  Bd6 {[%clk 0:02:04]} 23. Qc2 {[%clk 0:02:20]}  Kg7 {[%clk 0:02:02]} 24. Qc6 {[%clk 0:02:19]}  Qxc6 {[%clk 0:01:55]} 25. Rxc6 {[%clk 0:02:17]}  Bb4 {[%clk 0:01:55]} 26. h3 {[%clk 0:02:01]}  h5 {[%clk 0:01:39]} 27. Kf1 {[%clk 0:01:57]}  g5 {[%clk 0:01:34]} 28. g4 {[%clk 0:01:49]}  hxg4 {[%clk 0:01:30]} 29. hxg4 {[%clk 0:01:49]}  a5 {[%clk 0:00:58]} 30. Rxb6 {[%clk 0:01:46]}  Kf8 {[%clk 0:00:56]} 31. Rb7 {[%clk 0:01:41]}  Ke8 {[%clk 0:00:55]} 32. Ke2 {[%clk 0:01:39]}  Kf8 {[%clk 0:00:44]} 33. f3 {[%clk 0:01:34]}  exf3+ {[%clk 0:00:42]} 34. Bxf3 {[%clk 0:01:34]}  Kg7 {[%clk 0:00:43]} 35. Kd3 {[%clk 0:01:31]}  Ne8 {[%clk 0:00:39]} 36. e4 {[%clk 0:01:27]}  Nd6 {[%clk 0:00:36]} 37. Rc7 {[%clk 0:01:11]}  Kf8 {[%clk 0:00:29]} 38. e5 {[%clk 0:01:11]}  Ne8 {[%clk 0:00:28]} 39. Rb7 {[%clk 0:01:10]}  f5 {[%clk 0:00:21]} 40. exf6 {[%clk 0:00:49]}  Nxf6 {[%clk 0:00:22]} 41. Kc4 {[%clk 0:00:48]}  Be1 {[%clk 0:00:22]} 42. Kc5 {[%clk 0:00:44]}  Bf2 {[%clk 0:00:14]} 43. Rb5 {[%clk 0:00:40]}  e5 {[%clk 0:00:13]} 44. Rxa5 {[%clk 0:00:37]}  Bxd4+ {[%clk 0:00:11]} 45. Kc4 {[%clk 0:00:37]}  Bf2 {[%clk 0:00:09]} 46. Rxe5 {[%clk 0:00:36]}  Nd7 {[%clk 0:00:05]} 47. Rxg5 {[%clk 0:00:30]}  Ke7 {[%clk 0:00:05]} 48. Rf5 {[%clk 0:00:28]}  Kd6 {[%clk 0:00:05]} 49. b4 {[%clk 0:00:25]}  Be1 {[%clk 0:00:04]} 50. a5 {[%clk 0:00:23]}  Bd2 {[%clk 0:00:01]} 51. a6 {[%clk 0:00:20]} 1-0


[Site "https://www.chess.com"]

[Event "Titled Tuesday Blitz December 27 Early 2022"]
[White "Bogaudinov, Rushan"]
[Black "Darini, Pouria"]
[WhiteFideId "4129288"]
[BlackFideId "12502200"]
[WhiteElo "1939"]
[BlackElo "2401"]
[Result "0-1"]
[Round "04"]
[TimeControl "180+2"]
[Date "2022.12.27"]
[WhiteClock "0:00:05"]
[BlackClock "0:00:05"]

1. a3 {[%clk 0:03:00]}  d5 {[%clk 0:02:58]} 2. e3 {[%clk 0:02:58]}  Nf6 {[%clk 0:02:56]} 3. Nf3 {[%clk 0:02:58]}  Bg4 {[%clk 0:02:51]} 4. h3 {[%clk 0:02:56]}  Bh5 {[%clk 0:02:45]} 5. Bb5+ {[%clk 0:02:50]}  c6 {[%clk 0:02:44]} 6. Be2 {[%clk 0:02:50]}  Nbd7 {[%clk 0:02:40]} 7. b4 {[%clk 0:02:45]}  e5 {[%clk 0:02:36]} 8. Bb2 {[%clk 0:02:44]}  Bd6 {[%clk 0:02:29]} 9. d4 {[%clk 0:02:37]}  Bxf3 {[%clk 0:01:51]} 10. Bxf3 {[%clk 0:02:37]}  exd4 {[%clk 0:01:15]} 11. Bxd4 {[%clk 0:02:24]}  Be5 {[%clk 0:01:06]} 12. O-O {[%clk 0:02:17]}  O-O {[%clk 0:01:05]} 13. Nd2 {[%clk 0:02:11]}  Bxd4 {[%clk 0:01:05]} 14. exd4 {[%clk 0:02:12]}  b5 {[%clk 0:00:48]} 15. a4 {[%clk 0:01:58]}  a6 {[%clk 0:00:48]} 16. a5 {[%clk 0:01:57]}  Ne8 {[%clk 0:00:48]} 17. Re1 {[%clk 0:01:48]}  Nd6 {[%clk 0:00:49]} 18. Qe2 {[%clk 0:01:29]}  Re8 {[%clk 0:00:43]} 19. Qd3 {[%clk 0:01:29]}  g6 {[%clk 0:00:42]} 20. Kf1 {[%clk 0:01:25]}  h5 {[%clk 0:00:41]} 21. Rxe8+ {[%clk 0:01:24]}  Qxe8 {[%clk 0:00:40]} 22. Re1 {[%clk 0:01:24]}  Qf8 {[%clk 0:00:40]} 23. c3 {[%clk 0:01:22]}  Re8 {[%clk 0:00:30]} 24. Rxe8 {[%clk 0:01:19]}  Qxe8 {[%clk 0:00:31]} 25. Qe3 {[%clk 0:01:16]}  Qxe3 {[%clk 0:00:22]} 26. fxe3 {[%clk 0:01:17]}  f5 {[%clk 0:00:20]} 27. g4 {[%clk 0:01:10]}  Nf6 {[%clk 0:00:11]} 28. gxh5 {[%clk 0:01:07]}  g5 {[%clk 0:00:08]} 29. Nb3 {[%clk 0:01:06]}  Nd7 {[%clk 0:00:07]} 30. Ke2 {[%clk 0:01:02]}  Kg7 {[%clk 0:00:07]} 31. Kd3 {[%clk 0:00:55]}  Kh6 {[%clk 0:00:07]} 32. Nc5 {[%clk 0:00:43]}  Nxc5+ {[%clk 0:00:07]} 33. dxc5 {[%clk 0:00:44]}  Nc4 {[%clk 0:00:02]} 34. Kd4 {[%clk 0:00:42]}  Kg7 {[%clk 0:00:03]} 35. Be2 {[%clk 0:00:36]}  Kh6 {[%clk 0:00:03]} 36. Bxc4 {[%clk 0:00:20]}  dxc4 {[%clk 0:00:03]} 37. Ke5 {[%clk 0:00:20]}  g4 {[%clk 0:00:03]} 38. hxg4 {[%clk 0:00:20]}  fxg4 {[%clk 0:00:04]} 39. Kf4 {[%clk 0:00:20]}  Kxh5 {[%clk 0:00:05]} 40. e4 {[%clk 0:00:20]}  Kh4 {[%clk 0:00:04]} 41. e5 {[%clk 0:00:16]}  g3 {[%clk 0:00:05]} 42. Kf3 {[%clk 0:00:16]}  Kh3 {[%clk 0:00:02]} 43. e6 {[%clk 0:00:16]}  g2 {[%clk 0:00:03]} 44. e7 {[%clk 0:00:17]}  g1=Q {[%clk 0:00:03]} 45. e8=Q {[%clk 0:00:17]}  Qg3+ {[%clk 0:00:04]} 46. Ke2 {[%clk 0:00:17]}  Qd3+ {[%clk 0:00:04]} 47. Kf2 {[%clk 0:00:16]}  Qd2+ {[%clk 0:00:05]} 48. Kf1 {[%clk 0:00:15]}  Qxc3 {[%clk 0:00:04]} 49. Qe6+ {[%clk 0:00:13]}  Kg3 {[%clk 0:00:04]} 50. Qxc6 {[%clk 0:00:09]}  Qc1+ {[%clk 0:00:02]} 51. Ke2 {[%clk 0:00:09]}  Qc2+ {[%clk 0:00:03]} 52. Ke1 {[%clk 0:00:07]}  Qb1+ {[%clk 0:00:03]} 53. Ke2 {[%clk 0:00:06]}  Qb2+ {[%clk 0:00:04]} 54. Ke1 {[%clk 0:00:06]}  Qxb4+ {[%clk 0:00:04]} 55. Ke2 {[%clk 0:00:06]}  Qb2+ {[%clk 0:00:04]} 56. Ke3 {[%clk 0:00:05]}  Qf2+ {[%clk 0:00:05]} 0-1


[Site "https://www.chess.com"]

[Event "Titled Tuesday Blitz December 27 Early 2022"]
[White "Chernov, Mikhail"]
[Black "Goltseva, Ekaterina"]
[WhiteFideId "24143170"]
[BlackFideId "24173770"]
[WhiteElo "2205"]
[BlackElo "2283"]
[Result "0-1"]
[Round "04"]
[TimeControl "180+2"]
[Date "2022.12.27"]
[WhiteClock "0:00:27"]
[BlackClock "0:01:12"]

1. d4 {[%clk 0:03:00]}  d5 {[%clk 0:02:59]} 2. Nc3 {[%clk 0:02:59]}  Nf6 {[%clk 0:02:58]} 3. Bf4 {[%clk 0:02:59]}  e6 {[%clk 0:02:57]} 4. e3 {[%clk 0:02:58]}  c5 {[%clk 0:02:55]} 5. Nb5 {[%clk 0:02:54]}  Na6 {[%clk 0:02:54]} 6. c3 {[%clk 0:02:53]}  Be7 {[%clk 0:02:53]} 7. a4 {[%clk 0:02:53]}  O-O {[%clk 0:02:53]} 8. g4 {[%clk 0:02:45]}  Ne4 {[%clk 0:02:51]} 9. Be2 {[%clk 0:02:34]}  Bh4 {[%clk 0:02:46]} 10. Bg3 {[%clk 0:02:23]}  f5 {[%clk 0:02:44]} 11. Qc2 {[%clk 0:01:43]}  cxd4 {[%clk 0:02:34]} 12. Nxd4 {[%clk 0:01:32]}  fxg4 {[%clk 0:02:22]} 13. Bxg4 {[%clk 0:01:15]}  Nxf2 {[%clk 0:02:08]} 14. Bxe6+ {[%clk 0:00:57]}  Kh8 {[%clk 0:02:04]} 15. Ngf3 {[%clk 0:00:48]}  Bxg3 {[%clk 0:01:59]} 16. hxg3 {[%clk 0:00:48]}  Nxh1 {[%clk 0:01:59]} 17. O-O-O {[%clk 0:00:44]}  Nxg3 {[%clk 0:01:48]} 18. Rg1 {[%clk 0:00:35]}  Ne4 {[%clk 0:01:45]} 19. Ne5 {[%clk 0:00:35]}  Qf6 {[%clk 0:01:34]} 20. Ng6+ {[%clk 0:00:28]}  Qxg6 {[%clk 0:01:12]} 21. Rxg6 {[%clk 0:00:27]}  Rf1+ {[%clk 0:01:12]} 0-1


[Site "https://www.chess.com"]

[Event "Titled Tuesday Blitz December 27 Early 2022"]
[White "Costachi, Mihnea"]
[Black "Ratnesan, Ranesh"]
[WhiteFideId "1217518"]
[BlackFideId "439339"]
[WhiteElo "2476"]
[BlackElo "2260"]
[Result "1-0"]
[Round "04"]
[TimeControl "180+2"]
[Date "2022.12.27"]
[WhiteClock "0:01:39"]
[BlackClock "0:00:21"]

1. e4 {[%clk 0:03:00]}  c5 {[%clk 0:02:58]} 2. b4 {[%clk 0:02:59]}  cxb4 {[%clk 0:02:57]} 3. d4 {[%clk 0:02:59]}  d5 {[%clk 0:02:55]} 4. e5 {[%clk 0:02:57]}  Nc6 {[%clk 0:02:53]} 5. Nf3 {[%clk 0:02:58]}  Bg4 {[%clk 0:02:52]} 6. Be2 {[%clk 0:02:55]}  e6 {[%clk 0:02:51]} 7. O-O {[%clk 0:02:55]}  Nh6 {[%clk 0:02:45]} 8. Bxh6 {[%clk 0:02:53]}  gxh6 {[%clk 0:02:45]} 9. a3 {[%clk 0:02:51]}  bxa3 {[%clk 0:02:41]} 10. Nxa3 {[%clk 0:02:52]}  a6 {[%clk 0:02:36]} 11. c3 {[%clk 0:02:45]}  Rc8 {[%clk 0:02:33]} 12. h3 {[%clk 0:02:45]}  Bf5 {[%clk 0:02:30]} 13. Bd3 {[%clk 0:02:40]}  Bg6 {[%clk 0:02:30]} 14. Qe2 {[%clk 0:02:37]}  Rg8 {[%clk 0:02:27]} 15. Rfb1 {[%clk 0:02:36]}  b5 {[%clk 0:02:20]} 16. Nc2 {[%clk 0:02:37]}  Nb8 {[%clk 0:02:17]} 17. Nb4 {[%clk 0:02:21]}  Rxc3 {[%clk 0:01:56]} 18. Bxg6 {[%clk 0:02:19]}  Rxg6 {[%clk 0:01:57]} 19. Nxa6 {[%clk 0:02:19]}  Nxa6 {[%clk 0:01:34]} 20. Qxb5+ {[%clk 0:02:19]}  Qd7 {[%clk 0:01:30]} 21. Qxa6 {[%clk 0:02:19]}  Be7 {[%clk 0:01:28]} 22. Rb7 {[%clk 0:02:11]}  Qc6 {[%clk 0:01:20]} 23. Qa8+ {[%clk 0:01:50]}  Bd8 {[%clk 0:01:16]} 24. Rb8 {[%clk 0:01:50]}  Rc1+ {[%clk 0:01:09]} 25. Kh2 {[%clk 0:01:41]}  Qxa8 {[%clk 0:00:21]} 26. Raxa8 {[%clk 0:01:39]} 1-0


[Site "https://www.chess.com"]

[Event "Titled Tuesday Blitz December 27 Early 2022"]
[White "Deac, Bogdan-Daniel"]
[Black "Rustemov, Alexander"]
[WhiteFideId "1226380"]
[BlackFideId "4119002"]
[WhiteElo "2700"]
[BlackElo "2525"]
[Result "1-0"]
[Round "04"]
[TimeControl "180+2"]
[Date "2022.12.27"]
[WhiteClock "0:00:07"]
[BlackClock "0:00:02"]

1. d4 {[%clk 0:03:00]}  d5 {[%clk 0:02:58]} 2. Bf4 {[%clk 0:02:59]}  Nf6 {[%clk 0:02:57]} 3. e3 {[%clk 0:03:00]}  c5 {[%clk 0:02:58]} 4. Nf3 {[%clk 0:03:00]}  Nc6 {[%clk 0:02:58]} 5. Nbd2 {[%clk 0:02:59]}  Bg4 {[%clk 0:02:57]} 6. c3 {[%clk 0:02:59]}  e6 {[%clk 0:02:58]} 7. Qa4 {[%clk 0:02:57]}  Nd7 {[%clk 0:02:54]} 8. h3 {[%clk 0:02:51]}  Bh5 {[%clk 0:02:53]} 9. Bb5 {[%clk 0:02:50]}  Qc8 {[%clk 0:02:50]} 10. c4 {[%clk 0:02:40]}  a6 {[%clk 0:02:47]} 11. Bxc6 {[%clk 0:02:40]}  Qxc6 {[%clk 0:02:46]} 12. Qxc6 {[%clk 0:02:40]}  bxc6 {[%clk 0:02:46]} 13. Rc1 {[%clk 0:02:37]}  f6 {[%clk 0:02:39]} 14. O-O {[%clk 0:02:32]}  Be7 {[%clk 0:02:36]} 15. Nb3 {[%clk 0:02:17]}  cxd4 {[%clk 0:02:26]} 16. exd4 {[%clk 0:02:15]}  Bxf3 {[%clk 0:02:15]} 17. gxf3 {[%clk 0:02:15]}  Nb6 {[%clk 0:02:13]} 18. Na5 {[%clk 0:01:59]}  Nxc4 {[%clk 0:01:59]} 19. Nxc4 {[%clk 0:01:58]}  dxc4 {[%clk 0:02:00]} 20. Rxc4 {[%clk 0:01:59]}  Kd7 {[%clk 0:02:00]} 21. Rfc1 {[%clk 0:01:59]}  Rhc8 {[%clk 0:01:59]} 22. Ra4 {[%clk 0:01:58]}  g5 {[%clk 0:01:43]} 23. Be3 {[%clk 0:01:45]}  Bd6 {[%clk 0:01:39]} 24. Bd2 {[%clk 0:01:33]}  Rcb8 {[%clk 0:01:38]} 25. b3 {[%clk 0:01:29]}  Rb5 {[%clk 0:01:37]} 26. Kf1 {[%clk 0:01:21]}  Rd5 {[%clk 0:01:33]} 27. Ke2 {[%clk 0:01:18]}  Bc7 {[%clk 0:01:32]} 28. Rac4 {[%clk 0:01:02]}  Bd6 {[%clk 0:01:32]} 29. Rxc6 {[%clk 0:00:56]}  Rxd4 {[%clk 0:01:31]} 30. Rb6 {[%clk 0:00:56]}  Rxd2+ {[%clk 0:00:51]} 31. Kxd2 {[%clk 0:00:55]}  Bf4+ {[%clk 0:00:51]} 32. Kd1 {[%clk 0:00:55]}  Bxc1 {[%clk 0:00:52]} 33. Kxc1 {[%clk 0:00:56]}  a5 {[%clk 0:00:50]} 34. Rb7+ {[%clk 0:00:53]}  Kd6 {[%clk 0:00:51]} 35. Rxh7 {[%clk 0:00:51]}  Ke5 {[%clk 0:00:48]} 36. h4 {[%clk 0:00:48]}  Rc8+ {[%clk 0:00:38]} 37. Kd2 {[%clk 0:00:46]}  Rd8+ {[%clk 0:00:38]} 38. Ke3 {[%clk 0:00:40]}  gxh4 {[%clk 0:00:36]} 39. Rxh4 {[%clk 0:00:37]}  Rc8 {[%clk 0:00:36]} 40. Rc4 {[%clk 0:00:33]}  Rd8 {[%clk 0:00:33]} 41. f4+ {[%clk 0:00:19]}  Kf5 {[%clk 0:00:18]} 42. Rc5+ {[%clk 0:00:20]}  Kg4 {[%clk 0:00:16]} 43. Rxa5 {[%clk 0:00:20]}  Rd1 {[%clk 0:00:16]} 44. Ra4 {[%clk 0:00:12]}  f5 {[%clk 0:00:12]} 45. Ra6 {[%clk 0:00:08]}  Re1+ {[%clk 0:00:11]} 46. Kd2 {[%clk 0:00:09]}  Re4 {[%clk 0:00:11]} 47. Ra4 {[%clk 0:00:08]}  Kf3 {[%clk 0:00:02]} 48. Rxe4 {[%clk 0:00:08]}  Kxe4 {[%clk 0:00:02]} 49. a4 {[%clk 0:00:07]}  Kxf4 {[%clk 0:00:02]} 50. a5 {[%clk 0:00:07]}  Kf3 {[%clk 0:00:02]} 51. Ke1 {[%clk 0:00:07]} 1-0


[Site "https://www.chess.com"]

[Event "Titled Tuesday Blitz December 27 Early 2022"]
[White "Dias, Joao Batista"]
[Black "Osinovsky, Stepan"]
[WhiteFideId "2108240"]
[BlackFideId "4157354"]
[WhiteElo "1796"]
[BlackElo "2241"]
[Result "0-1"]
[Round "04"]
[TimeControl "180+2"]
[Date "2022.12.27"]
[WhiteClock "0:01:05"]
[BlackClock "0:01:03"]

1. e4 {[%clk 0:01:48]}  e5 {[%clk 0:02:57]} 2. Nf3 {[%clk 0:01:47]}  Nc6 {[%clk 0:02:56]} 3. d4 {[%clk 0:01:47]}  exd4 {[%clk 0:02:53]} 4. Nxd4 {[%clk 0:01:48]}  Bc5 {[%clk 0:02:53]} 5. Nxc6 {[%clk 0:01:48]}  Qf6 {[%clk 0:02:51]} 6. Qd2 {[%clk 0:01:48]}  dxc6 {[%clk 0:02:49]} 7. Bd3 {[%clk 0:01:48]}  Be6 {[%clk 0:02:42]} 8. O-O {[%clk 0:01:48]}  O-O-O {[%clk 0:02:41]} 9. Nc3 {[%clk 0:01:48]}  Ne7 {[%clk 0:02:36]} 10. Qg5 {[%clk 0:01:47]}  Qxg5 {[%clk 0:02:31]} 11. Bxg5 {[%clk 0:01:46]}  Rhe8 {[%clk 0:02:18]} 12. a3 {[%clk 0:01:44]}  h6 {[%clk 0:02:17]} 13. Bh4 {[%clk 0:01:42]}  Rd7 {[%clk 0:02:09]} 14. Ne2 {[%clk 0:01:36]}  g5 {[%clk 0:01:24]} 15. Bg3 {[%clk 0:01:35]}  f5 {[%clk 0:01:25]} 16. exf5 {[%clk 0:01:33]}  Bxf5 {[%clk 0:01:17]} 17. Bxf5 {[%clk 0:01:27]}  Nxf5 {[%clk 0:01:17]} 18. Nc3 {[%clk 0:01:26]}  Rd2 {[%clk 0:01:07]} 19. Rae1 {[%clk 0:01:13]}  Rxe1 {[%clk 0:01:04]} 20. Rxe1 {[%clk 0:01:13]}  Nxg3 {[%clk 0:01:04]} 21. hxg3 {[%clk 0:01:05]}  Bxf2+ {[%clk 0:01:03]} 22. Kf1 {[%clk 0:01:05]}  Bxe1 {[%clk 0:01:04]} 23. Kxe1 {[%clk 0:01:05]}  Rxc2 {[%clk 0:01:03]} 0-1


[Site "https://www.chess.com"]

[Event "Titled Tuesday Blitz December 27 Early 2022"]
[White "Domingo Nunez, Ruben"]
[Black "Melikhov, Evgeny V."]
[WhiteFideId "22245570"]
[BlackFideId "4122046"]
[WhiteElo "2416"]
[BlackElo "2269"]
[Result "1-0"]
[Round "04"]
[TimeControl "180+2"]
[Date "2022.12.27"]
[WhiteClock "0:00:06"]
[BlackClock "0:00:01"]

1. e4 {[%clk 0:03:00]}  e5 {[%clk 0:02:57]} 2. Nf3 {[%clk 0:03:01]}  Nc6 {[%clk 0:02:57]} 3. Bc4 {[%clk 0:03:01]}  Nf6 {[%clk 0:02:56]} 4. d3 {[%clk 0:03:02]}  Be7 {[%clk 0:02:55]} 5. O-O {[%clk 0:03:02]}  O-O {[%clk 0:02:54]} 6. Re1 {[%clk 0:03:03]}  d6 {[%clk 0:02:51]} 7. a4 {[%clk 0:03:03]}  Be6 {[%clk 0:02:49]} 8. Nc3 {[%clk 0:03:03]}  Qd7 {[%clk 0:02:47]} 9. a5 {[%clk 0:03:03]}  Nd4 {[%clk 0:02:34]} 10. Nxd4 {[%clk 0:02:49]}  exd4 {[%clk 0:02:34]} 11. Ne2 {[%clk 0:02:50]}  c5 {[%clk 0:02:23]} 12. Nf4 {[%clk 0:02:47]}  Bxc4 {[%clk 0:02:19]} 13. dxc4 {[%clk 0:02:47]}  Rfe8 {[%clk 0:02:19]} 14. a6 {[%clk 0:02:45]}  b5 {[%clk 0:02:15]} 15. cxb5 {[%clk 0:01:44]}  Qxb5 {[%clk 0:02:14]} 16. b3 {[%clk 0:01:45]}  Bf8 {[%clk 0:02:00]} 17. f3 {[%clk 0:01:45]}  Rab8 {[%clk 0:01:34]} 18. Qd3 {[%clk 0:01:21]}  Qxd3 {[%clk 0:01:32]} 19. Nxd3 {[%clk 0:01:21]}  d5 {[%clk 0:01:21]} 20. e5 {[%clk 0:01:21]}  Nd7 {[%clk 0:01:16]} 21. Ra5 {[%clk 0:01:11]}  c4 {[%clk 0:01:05]} 22. Rxd5 {[%clk 0:01:11]}  cxd3 {[%clk 0:01:05]} 23. Rxd7 {[%clk 0:01:12]}  dxc2 {[%clk 0:01:05]} 24. Rxa7 {[%clk 0:01:04]}  Rxb3 {[%clk 0:01:00]} 25. Rd7 {[%clk 0:01:04]}  Rb1 {[%clk 0:00:57]} 26. Kf2 {[%clk 0:00:59]}  Bc5 {[%clk 0:00:45]} 27. Rd5 {[%clk 0:00:44]}  Bb6 {[%clk 0:00:40]} 28. Ke2 {[%clk 0:00:45]}  f6 {[%clk 0:00:37]} 29. f4 {[%clk 0:00:42]}  fxe5 {[%clk 0:00:37]} 30. fxe5 {[%clk 0:00:43]}  Rb3 {[%clk 0:00:34]} 31. Kd2 {[%clk 0:00:40]}  d3 {[%clk 0:00:32]} 32. e6 {[%clk 0:00:35]}  Bf2 {[%clk 0:00:20]} 33. Ree5 {[%clk 0:00:21]}  g6 {[%clk 0:00:13]} 34. Rxd3 {[%clk 0:00:18]}  Rxd3+ {[%clk 0:00:13]} 35. Kxd3 {[%clk 0:00:19]}  Kg7 {[%clk 0:00:11]} 36. Re2 {[%clk 0:00:15]}  Ba7 {[%clk 0:00:10]} 37. Bb2+ {[%clk 0:00:16]}  Kf8 {[%clk 0:00:09]} 38. Kxc2 {[%clk 0:00:11]}  Rc8+ {[%clk 0:00:07]} 39. Kd3 {[%clk 0:00:11]}  Rc6 {[%clk 0:00:07]} 40. Ba3+ {[%clk 0:00:09]}  Ke8 {[%clk 0:00:07]} 41. Bb4 {[%clk 0:00:06]}  Rxa6 {[%clk 0:00:06]} 42. Kc4 {[%clk 0:00:07]}  Bb8 {[%clk 0:00:04]} 43. Kb5 {[%clk 0:00:07]}  Ra7 {[%clk 0:00:03]} 44. Rf2 {[%clk 0:00:07]}  Rb7+ {[%clk 0:00:01]} 45. Kc4 {[%clk 0:00:06]}  Rxb4+ {[%clk 0:00:01]} 46. Kxb4 {[%clk 0:00:06]}  Bxh2 {[%clk 0:00:01]} 47. Rf7 {[%clk 0:00:06]} 1-0


[Site "https://www.chess.com"]